bitfinex-derivatives/quotes_SOLF0:USTF0_20241120
["timestamp","ask_amount","ask_price","bid_price","bid_amount"]
[1732112402333,3.08,241.83,241.63,15.75006731]
[1732112402738,3.08,241.83,241.64,2.30848566]
[1732112402940,2.066,241.79,241.72,2.0665]
[1732112403435,2.0658,241.81,241.74,2.0663]
[1732112403833,3.08,241.83,241.71,15.75006731]
[1732112404136,15.75006731,241.92,241.72,4.947]
[1732112404440,3.08,241.91,241.75,15.75006731]
[1732112404934,15.75006731,242.0,241.79,15.75006731]
[1732112405136,4.5362,242.01,241.75,15.75006731]
[1732112405137,15.75006731,241.96,241.75,15.75006731]
[1732112405334,4.5362,242.01,241.76,2.30491886]
[1732112405335,15.75006731,241.92,241.76,2.30491886]
[1732112405536,2.0652,241.88,241.79,2.0658]
[1732112405838,2.0652,241.88,241.76,2.30471192]
[1732112406035,3.08,241.91,241.75,15.75006731]
[1732112406236,3.08,241.91,241.79,15.75006731]
[1732112406432,15.75006731,242.0,241.79,15.75006731]
[1732112406636,3.08,241.99,241.8,2.30345025]
[1732112406836,3.08,241.99,241.81,2.30345025]
[1732112407037,3.08,241.99,241.82,2.30345025]
[1732112407238,3.08,241.99,241.8,3.08]
[1732112407432,15.75006731,242.0,241.9,2.0649]
[1732112407734,4.58,242.11,241.87,15.75006731]
[1732112407735,3.08,242.01,241.87,15.75006731]
[1732112407939,18.83006731,242.0,241.83,2.30252458]
[1732112408138,18.83006731,242.0,241.8,18.83006731]
[1732112408139,3.08,241.99,241.84,4.8412]
[1732112408936,2.0648,241.92,241.84,6.9067]
[1732112409140,3.08,241.99,241.84,4.8412]
[1732112409340,15.75006731,241.96,241.84,4.8412]
[1732112409637,15.75006731,241.92,241.67,3.08]
[1732112409835,15.75006731,241.92,241.71,7.20534623]
[1732112409836,15.75006731,241.88,241.71,7.20534623]
[1732112410038,15.75006731,241.84,241.71,4.8979]
[1732112410341,3.08,241.83,241.71,4.8979]
[1732112410639,3.08,241.82,241.71,4.8979]
[1732112410839,3.08,241.84,241.71,4.8979]
[1732112411141,18.83006731,241.84,241.71,4.8979]
[1732112411535,3.08,241.84,241.71,4.8979]
[1732112412937,3.08,241.88,241.74,15.75006731]
[1732112413241,2.0648,241.93,241.84,2.0654]
[1732112413437,29.76,241.96,241.78,15.75006731]
[1732112413638,3.08,241.95,241.78,15.75006731]
[1732112414237,2.9306,242.03,241.82,15.75006731]
[1732112414238,3.08,241.98,241.82,15.75006731]
[1732112414436,3.08,241.98,241.83,4.7042]
[1732112414636,3.08,241.98,241.83,30.2799956]
[1732112414840,3.08,241.98,241.91,2.0648]
[1732112415249,25.5757956,242.07,241.87,25.5757956]
[1732112415441,2.0639,242.03,241.87,25.5757956]
[1732112415646,2.0639,242.03,241.86,25.5757956]
[1732112415843,25.5757956,242.11,241.9,25.5757956]
[1732112416051,3.08,242.1,241.91,3.08]
[1732112416748,0.34466,242.05,241.91,3.08]
[1732112416945,0.34466,242.05,241.96,25.5757956]
[1732112417144,2.40836,242.05,241.97,4.8516]
[1732112417344,0.34466,242.05,241.97,4.8516]
[1732112419348,25.5757956,242.11,241.97,4.8516]
[1732112419539,2.0637,242.05,241.97,4.8516]
[1732112419742,3.06,242.08,241.97,4.8516]
[1732112420355,2.0637,242.05,241.97,4.8516]
[1732112420543,3.06,242.08,241.92,25.5757956]
[1732112420749,3.06,242.08,241.89,25.5757956]
[1732112421550,2.0637,242.05,241.89,25.5757956]
[1732112421754,3.06,242.08,241.89,25.5757956]
[1732112422050,3.06,242.11,241.93,25.5757956]
[1732112422451,2.0635,242.08,241.99,2.0642]
[1732112422658,3.06,242.11,242.0,3.3171]
[1732112423558,2.98,242.15,242.0,3.3171]
[1732112423755,25.5757956,242.27,242.05,25.5757956]
[1732112424055,2.0623,242.21,242.11,2.0631]
[1732112424257,2.98,242.26,242.09,25.5757956]
[1732112424559,2.98,242.26,242.1,1.6695]
[1732112425353,2.0624,242.2,242.13,2.063]
[1732112425560,2.0624,242.2,242.14,1.6144]
[1732112425760,2.0625,242.19,242.14,1.6144]
[1732112426061,25.5757956,242.23,242.14,1.6144]
[1732112426259,25.5757956,242.23,242.12,1.558]
[1732112426459,25.5757956,242.23,242.1,1.6695]
[1732112426764,25.5757956,242.15,242.06,1.5519]
[1732112426957,2.0631,242.12,242.06,1.5519]
[1732112427162,2.98,242.14,242.06,1.5519]
[1732112427565,2.0634,242.09,242.06,1.5519]
[1732112427867,2.98,242.14,241.93,27.2311956]
[1732112428063,2.0637,242.05,241.96,2.0644]
[1732112428455,2.0637,242.05,241.94,3.102]
[1732112429266,2.0637,242.05,241.95,2.0645]
[1732112429464,2.0637,242.05,241.94,3.102]
[1732112429861,2.98,242.14,241.96,2.0644]
[1732112430463,2.0637,242.05,241.96,2.0644]
[1732112431360,25.5757956,242.02,241.94,1.5519]
[1732112431562,2.98,242.01,241.93,1.6554]
[1732112431860,2.0644,241.97,241.93,1.6554]
[1732112432167,2.98,242.01,241.93,1.6554]
[1732112432372,2.0643,241.98,241.93,1.6554]
[1732112432663,2.98,242.01,241.93,1.6554]
[1732112432862,2.98,242.01,241.93,3.7201]
[1732112433063,2.98,242.01,241.93,1.6554]
[1732112434268,25.5757956,242.16,241.93,1.6554]
[1732112434269,2.98,242.11,241.97,25.5757956]
[1732112434563,2.98,242.11,241.98,3.239]
[1732112434963,2.0633,242.09,242.02,2.0639]
[1732112435165,2.98,242.11,241.98,3.239]
[1732112435767,25.5757956,242.08,241.98,1.6532]
[1732112436461,2.98,242.11,241.98,1.6532]
[1732112436863,2.98,242.11,241.93,1.6554]
[1732112436864,25.5757956,242.08,241.93,1.6554]
[1732112437064,2.0639,242.02,241.94,2.0646]
[1732112437263,2.98,242.02,241.93,1.6554]
[1732112439271,2.98,242.02,241.93,3.7201]
[1732112439475,2.98,242.02,241.93,1.6554]
[1732112439667,2.98,242.03,241.93,1.6554]
[1732112439971,2.0641,242.01,241.93,3.7201]
[1732112440162,2.98,242.03,241.93,1.6554]
[1732112440971,2.0643,241.98,241.93,1.6554]
[1732112441175,15.73339267,241.99,241.83,0.14805]
[1732112441371,2.0649,241.91,241.83,2.21365]
[1732112441569,2.98,241.93,241.83,0.14805]
[1732112442164,5.0448,241.93,241.85,2.0654]
[1732112442370,2.98,241.93,241.83,0.14805]
[1732112442872,2.98,241.93,241.83,15.88144267]
[1732112443076,2.98,241.98,241.83,15.88144267]
[1732112443270,2.0648,241.93,241.84,2.0654]
[1732112443572,2.98,241.98,241.84,2.0654]
[1732112443772,2.98,241.98,241.83,0.14805]
[1732112443967,2.0648,241.93,241.85,2.0654]
[1732112445272,2.98,241.98,241.83,0.14805]
[1732112445273,2.0649,241.91,241.83,0.14805]
[1732112445472,2.98,241.91,241.83,0.14805]
[1732112445770,18.71339267,241.91,241.83,0.14805]
[1732112445971,15.73339267,241.87,241.75,1.6233]
[1732112446271,15.73339267,241.87,241.66,2.98]
[1732112446272,15.73339267,241.87,241.68,3.1079]
[1732112447070,3.249,241.9,241.69,15.73339267]
[1732112447266,15.73339267,241.87,241.68,3.1079]
[1732112447468,15.73339267,241.83,241.68,5.1747]
[1732112447768,15.73339267,241.79,241.61,15.73339267]
[1732112447971,2.0666,241.71,241.62,5.2676]
[1732112448176,2.98,241.78,241.62,5.2676]
[1732112448470,2.0668,241.69,241.62,3.2003]
[1732112448770,2.98,241.7,241.62,3.2003]
[1732112449175,5.0467,241.7,241.62,3.2003]
[1732112449374,2.98,241.7,241.62,3.2003]
[1732112449776,2.98,241.7,241.63,2.0672]
[1732112450078,2.98,241.7,241.62,3.2003]
[1732112450275,2.98,241.7,241.63,2.0672]
[1732112450481,2.98,241.7,241.62,3.2003]
[1732112450675,2.98,241.7,241.65,15.73339267]
[1732112450977,1.2588,241.82,241.66,2.067]
[1732112450978,5.0463,241.75,241.66,2.067]
[1732112451275,2.98,241.76,241.65,15.73339267]
[1732112451474,2.98,241.76,241.69,2.0667]
[1732112451773,2.98,241.79,241.69,15.73339267]
[1732112451978,2.98,241.8,241.69,15.73339267]
[1732112452175,15.73339267,241.87,241.63,1.6788]
[1732112452481,2.98,241.86,241.67,15.73339267]
[1732112453368,2.98,241.86,241.72,2.0665]
[1732112453779,2.98,241.86,241.67,15.73339267]
[1732112454074,2.0658,241.8,241.67,15.73339267]
[1732112454280,2.9,241.79,241.67,15.73339267]
[1732112454469,4.9658,241.8,241.67,15.73339267]
[1732112454871,3.1793,241.89,241.76,2.0661]
[1732112455076,2.9,241.86,241.72,15.73339267]
[1732112455577,2.9,241.92,241.76,15.73339267]
[1732112455770,2.9,241.92,241.77,4.9843]
[1732112455971,2.065,241.9,241.81,2.0657]
[1732112456173,2.9,241.92,241.8,15.73339267]
[1732112456377,20.13829267,241.99,241.8,15.73339267]
[1732112456581,2.9,241.98,241.8,15.73339267]
[1732112457281,2.0648,241.92,241.84,2.0654]
[1732112457785,2.065,241.9,241.82,2.0656]
[1732112457973,2.9,241.91,241.77,4.9843]
[1732112458177,2.9,241.9,241.77,4.9843]
[1732112458476,2.9,241.9,241.77,3.3047]
[1732112458681,2.9,241.9,241.75,2.0662]
[1732112458882,2.9,241.9,241.76,2.0661]
[1732112458883,2.0655,241.84,241.76,2.0661]
[1732112459076,2.9,241.9,241.72,15.73339267]
[1732112459278,15.73339267,241.87,241.69,3.1834]
[1732112459478,2.0656,241.83,241.75,2.0662]
[1732112459682,4.9656,241.83,241.75,2.0662]
[1732112459883,2.9,241.83,241.72,15.73339267]
[1732112460087,4.9656,241.83,241.72,15.73339267]
[1732112460284,2.9,241.83,241.72,15.73339267]
[1732112460981,2.9,241.83,241.76,2.0661]
[1732112461579,2.9,241.83,241.73,1.6769]
[1732112462881,2.9,241.83,241.69,3.1834]
[1732112462882,2.9,241.83,241.7,2.0666]
[1732112463081,2.9,241.83,241.69,3.1834]
[1732112463082,18.63339267,241.83,241.69,1.5883]
[1732112463277,18.63339267,241.83,241.64,15.73339267]
[1732112463477,1.685,241.82,241.64,15.73339267]
[1732112463681,15.73339267,241.79,241.6,17.31409267]
[1732112463883,15.73339267,241.75,241.6,1.5807]
[1732112464079,2.9,241.74,241.58,1.6475]
[1732112464279,15.73339267,241.71,241.5,1.5807]
[1732112464485,15.73339267,241.67,241.5,1.5807]
[1732112464681,28.55696555,241.66,241.5,1.5807]
[1732112464884,2.9,241.65,241.5,1.5807]
[1732112465084,25.65696555,241.62,241.46,3.2704]
[1732112465389,25.65696555,241.62,241.46,1.5835]
[1732112466194,2.9,241.61,241.45,19.44348692]
[1732112466387,25.65696555,241.54,241.45,19.44348692]
[1732112466588,2.9,241.53,241.45,19.44348692]
[1732112466787,2.0683,241.51,241.45,19.44348692]
[1732112466991,2.9,241.53,241.45,19.44348692]
[1732112467195,2.9,241.56,241.41,25.65696555]
[1732112467389,2.9,241.55,241.37,25.65696555]
[1732112467696,2.9,241.55,241.41,25.65696555]
[1732112467896,2.9,241.55,241.37,25.65696555]
[1732112468094,25.65696555,241.54,241.31,25.65696555]
[1732112468692,2.0686,241.48,241.31,25.65696555]
[1732112468893,2.0686,241.48,241.3,1.5692]
[1732112468894,2.9,241.47,241.35,25.65696555]
[1732112469792,2.9,241.47,241.31,25.65696555]
[1732112469991,2.9,241.47,241.3,1.5692]
[1732112470391,2.069,241.44,241.32,2.0699]
[1732112470589,2.9,241.47,241.31,25.65696555]
[1732112470989,2.0687,241.46,241.36,2.0695]
[1732112471197,2.9,241.47,241.36,2.0695]
[1732112471600,25.65696555,241.54,241.35,25.65696555]
[1732112471893,25.65696555,241.54,241.39,25.65696555]
[1732112471894,2.9,241.54,241.39,25.65696555]
[1732112472094,2.9,241.54,241.44,2.0688]
[1732112472807,2.9,241.57,241.43,25.65696555]
[1732112473003,2.9,241.57,241.44,3.2486]
[1732112473295,2.9,241.57,241.47,25.65696555]
[1732112473504,2.9,241.62,241.47,25.65696555]
[1732112473702,2.9,241.62,241.51,25.65696555]
[1732112475000,2.9,241.62,241.44,3.2486]
[1732112475298,28.55696555,241.62,241.44,3.2486]
[1732112475497,2.0678,241.57,241.44,5.3174]
[1732112475695,28.55696555,241.62,241.44,3.2486]
[1732112475897,3.1849,241.65,241.47,25.65696555]
[1732112476095,2.9,241.64,241.47,25.65696555]
[1732112476595,2.0677,241.58,241.49,2.0684]
[1732112476801,2.9,241.64,241.47,25.65696555]
[1732112477698,2.0675,241.6,241.51,2.0683]
[1732112478200,2.0676,241.59,241.5,2.0684]
[1732112478499,2.9,241.64,241.47,25.65696555]
[1732112478894,2.0678,241.57,241.48,2.0685]
[1732112479093,2.9,241.56,241.44,3.2486]
[1732112479497,2.9,241.56,241.49,2.0685]
[1732112479699,2.9,241.56,241.44,3.2486]
[1732112479899,2.0683,241.51,241.44,3.2486]
[1732112480094,2.0683,241.51,241.44,1.6275]
[1732112480302,2.9,241.56,241.44,1.6275]
[1732112480499,25.65696555,241.54,241.36,1.6204]
[1732112481204,2.0688,241.46,241.36,3.6899]
[1732112481407,2.9,241.45,241.36,1.6204]
[1732112481909,4.9688,241.45,241.36,3.6899]
[1732112482098,2.9,241.45,241.31,25.65696555]
[1732112483006,2.0691,241.42,241.33,2.0698]
[1732112483203,2.9,241.45,241.33,2.0698]
[1732112483401,25.65696555,241.42,241.25,1.5823]
[1732112483609,2.92,241.42,241.3,25.65696555]
[1732112484004,2.0687,241.47,241.37,2.0695]
[1732112484205,1.5689,241.55,241.38,25.65696555]
[1732112484406,2.92,241.54,241.39,1.5558]
[1732112484608,2.92,241.54,241.39,4.7059]
[1732112485604,2.0687,241.47,241.39,3.1381]
[1732112485803,2.92,241.54,241.39,3.1381]
[1732112486202,2.0689,241.44,241.35,2.0696]
[1732112486506,2.92,241.43,241.3,1.5558]
[1732112486707,2.92,241.43,241.32,2.0699]
[1732112486901,2.92,241.43,241.3,1.5558]
[1732112488507,2.0693,241.4,241.3,1.5558]
[1732112488708,25.70839761,241.42,241.25,1.639]
[1732112488910,25.70839761,241.42,241.21,25.70839761]
[1732112488911,25.70839761,241.42,241.21,1.59]
[1732112489110,2.0703,241.28,241.18,2.0711]
[1732112489310,2.92,241.27,241.17,25.70839761]
[1732112489608,2.0705,241.26,241.17,27.77959761]
[1732112490118,2.92,241.27,241.17,27.77959761]
[1732112490313,2.92,241.27,241.17,25.70839761]
[1732112490507,2.92,241.35,241.21,25.70839761]
[1732112491007,2.92,241.35,241.17,25.70839761]
[1732112491409,2.0703,241.28,241.18,2.0711]
[1732112491713,25.70839761,241.42,241.18,2.0711]
[1732112491714,2.92,241.27,241.18,2.0711]
[1732112491912,2.0708,241.23,241.15,3.2373]
[1732112492111,2.92,241.27,241.15,3.2373]
[1732112494006,2.0708,241.22,241.15,3.2373]
[1732112494309,2.92,241.27,241.15,3.2373]
[1732112495218,2.92,241.27,241.12,2.0716]
[1732112495713,2.92,241.27,241.13,2.0715]
[1732112496312,25.70839761,241.29,241.13,2.0715]
[1732112496513,3.1,241.28,241.1,1.6111]
[1732112496709,3.1,241.28,241.12,2.0716]
[1732112496915,3.1,241.28,241.1,1.6111]
[1732112496916,25.70839761,241.25,241.1,1.6111]
[1732112497820,25.70839761,241.25,241.1,3.6829]
[1732112497821,2.0711,241.18,241.1,3.6829]
[1732112498015,3.1,241.17,241.1,3.6829]
[1732112498318,3.1,241.17,241.1,1.6111]
[1732112499316,3.1,241.17,241.11,2.0717]
[1732112499517,3.1,241.17,241.1,1.6111]
[1732112500515,3.1,241.17,241.12,2.0716]
[1732112500721,3.1,241.17,241.1,1.6111]
[1732112501617,3.1,241.24,241.1,1.6111]
[1732112502117,2.0709,241.21,241.15,2.0714]
[1732112502317,3.1,241.24,241.12,25.70839761]
[1732112502714,3.1,241.24,241.1,1.6111]
[1732112502915,2.0709,241.21,241.15,2.0713]
[1732112503117,2.0709,241.21,241.1,1.6111]
[1732112503515,2.0709,241.21,241.13,2.0715]
[1732112503720,3.1,241.24,241.1,1.6111]
[1732112504620,2.0712,241.17,241.1,1.6111]
[1732112504920,3.1,241.24,241.1,1.6111]
[1732112506217,3.1,241.24,241.12,2.0716]
[1732112506413,25.70839761,241.28,241.04,25.70839761]
[1732112506816,3.1,241.27,241.08,25.70839761]
[1732112507016,25.70839761,241.28,241.08,25.70839761]
[1732112507017,3.1,241.26,241.08,25.70839761]
[1732112507213,2.0709,241.21,241.15,2.0714]
[1732112507414,25.70839761,241.28,241.08,25.70839761]
[1732112507621,3.1,241.27,241.08,25.70839761]
[1732112507819,3.1,241.26,241.08,25.70839761]
[1732112508623,3.1,241.26,241.1,15.83366246]
[1732112508812,2.0709,241.21,241.15,2.0713]
[1732112509219,3.1,241.26,241.1,15.83366246]
[1732112509818,2.071,241.19,241.1,15.83366246]
[1732112510015,5.171,241.19,241.1,15.83366246]
[1732112510421,3.1,241.23,241.1,15.83366246]
[1732112511225,3.1,241.25,241.14,15.83366246]
[1732112511519,3.1,241.25,241.1,15.83366246]
[1732112511721,3.1,241.25,241.11,4.7264]
[1732112512017,1.4844,241.31,241.11,4.7264]
[1732112512224,3.1,241.3,241.14,15.83366246]
[1732112512423,2.0706,241.25,241.15,2.0714]
[1732112512625,18.93366246,241.3,241.11,4.7264]
[1732112513022,3.1,241.3,241.11,6.80304122]
[1732112513327,15.83366246,241.34,241.11,6.80304122]
[1732112513525,2.0704,241.27,241.23,2.0707]
[1732112513724,4.1392,241.36,241.11,6.80304122]
[1732112513725,15.83366246,241.38,241.17,15.83366246]
[1732112513926,3.1,241.37,241.21,15.83366246]
[1732112514130,15.83366246,241.38,241.21,15.83366246]
[1732112514428,3.1,241.37,241.21,15.83366246]
[1732112514625,2.0699,241.32,241.25,2.0705]
[1732112514930,2.0699,241.32,241.26,3.052]
[1732112515222,3.1,241.37,241.26,3.052]
[1732112515426,15.83366246,241.35,241.17,15.83366246]
[1732112515731,2.0703,241.28,241.23,2.0706]
[1732112515926,0.41819,241.4,241.19,3.0355]
[1732112515927,3.1,241.27,241.19,3.0355]
[1732112516126,3.1,241.26,241.19,3.0355]
[1732112516921,2.0707,241.23,241.19,3.0355]
[1732112517131,3.1,241.26,241.19,1.53]
[1732112519127,2.0706,241.24,241.19,1.53]
[1732112519430,3.1,241.26,241.19,1.53]
[1732112519629,4.7222,241.34,241.19,1.53]
[1732112519630,3.1,241.25,241.19,1.53]
[1732112520032,3.1,241.26,241.19,1.53]
[1732112520629,3.1,241.26,241.12,1.5055]
[1732112520830,2.0708,241.23,241.13,1.5767]
[1732112521427,2.0709,241.21,241.15,2.0713]
[1732112522128,3.1,241.26,241.13,1.5767]
[1732112522327,4.7222,241.34,241.13,1.5767]
[1732112522530,3.1,241.33,241.13,1.5767]
[1732112522826,15.83366246,241.39,241.17,15.83366246]
[1732112523027,15.83366246,241.39,241.21,15.83366246]
[1732112523227,3.1,241.38,241.31,2.07]
[1732112523427,2.0696,241.36,241.31,2.07]
[1732112523635,2.0696,241.36,241.21,15.83366246]
[1732112523932,3.55819,241.4,241.25,15.83366246]
[1732112524132,3.55819,241.4,241.26,4.8352]
[1732112524531,0.41819,241.4,241.26,4.8352]
[1732112524739,3.55819,241.4,241.26,4.8352]
[1732112525034,2.0694,241.38,241.26,4.8352]
[1732112526127,2.0695,241.37,241.3,2.0701]
[1732112526333,2.0695,241.37,241.26,4.8352]
[1732112526730,2.0699,241.33,241.28,2.0702]
[1732112527131,3.55819,241.4,241.26,4.8352]
[1732112527431,2.0697,241.35,241.3,2.0701]
[1732112527631,3.55819,241.4,241.26,4.8352]
[1732112528132,3.55819,241.4,241.3,2.0701]
[1732112528428,0.41819,241.4,241.26,4.8352]
[1732112528626,0.41819,241.4,241.33,2.0698]
[1732112529225,2.0695,241.37,241.31,2.0699]
[1732112529633,2.0697,241.35,241.29,2.0701]
[1732112529934,0.41819,241.4,241.26,4.8352]
[1732112530235,15.83366246,241.38,241.26,4.8352]
[1732112530531,0.41819,241.4,241.26,4.8352]
[1732112530731,2.0697,241.35,241.29,2.0702]
[1732112530932,0.41819,241.4,241.26,4.8352]
[1732112531331,3.14,241.39,241.26,4.8352]
[1732112531736,2.0698,241.34,241.26,4.8352]
[1732112532034,3.14,241.39,241.26,4.8352]
[1732112532430,3.14,241.39,241.31,2.07]
[1732112532635,3.14,241.39,241.26,4.8352]
[1732112533137,3.14,241.39,241.24,2.33138791]
[1732112533739,3.14,241.38,241.24,2.33138791]
[1732112534236,2.0696,241.37,241.24,2.33138791]
[1732112534448,3.14,241.39,241.25,15.83366246]
[1732112535147,5.2094,241.39,241.25,15.83366246]
[1732112535646,2.0696,241.37,241.25,15.83366246]
[1732112535847,3.14,241.39,241.25,15.83366246]
[1732112536344,3.14,241.39,241.24,2.33138791]
[1732112536748,2.07,241.32,241.24,2.33138791]
[1732112537154,9.88713959,241.38,241.24,2.33138791]
[1732112537353,2.0701,241.31,241.26,2.0704]
[1732112537747,3.14,241.39,241.26,9.88713959]
[1732112538152,3.14,241.39,241.29,9.88713959]
[1732112538648,2.0695,241.38,241.32,2.0699]
[1732112538852,0.41819,241.4,241.29,9.88713959]
[1732112539152,9.88713959,241.38,241.23,9.88713959]
[1732112539350,9.88713959,241.35,241.11,5.16609182]
[1732112539556,9.88713959,241.32,241.17,14.79083959]
[1732112539957,3.14,241.34,241.19,2.333013]
[1732112540257,3.14,241.34,241.24,2.0706]
[1732112540446,3.14,241.34,241.2,9.88713959]
[1732112541160,2.0701,241.3,241.24,2.0706]
[1732112541358,3.14,241.34,241.17,14.79083959]
[1732112541650,3.14,241.34,241.23,9.88713959]
[1732112541850,9.88713959,241.38,241.23,9.88713959]
[1732112542056,3.14,241.37,241.23,9.88713959]
[1732112542250,2.0699,241.32,241.23,9.88713959]
[1732112542550,9.88713959,241.35,241.2,9.88713959]
[1732112542850,9.88713959,241.35,241.17,14.79083959]
[1732112543355,9.88713959,241.32,241.19,2.071]
[1732112543545,9.88713959,241.32,241.17,14.79083959]
[1732112543751,1.6945,241.36,241.17,4.9037]
[1732112543752,9.88713959,241.29,241.17,4.9037]
[1732112543947,2.0708,241.22,241.17,4.9037]
[1732112544146,2.0708,241.22,241.14,9.88713959]
[1732112544352,3.14,241.28,241.14,9.88713959]
[1732112544548,3.14,241.28,241.16,2.0713]
[1732112544753,3.14,241.28,241.14,9.88713959]
[1732112544955,3.14,241.28,241.11,4.8543]
[1732112545259,3.14,241.28,241.12,9.88713959]
[1732112545260,9.88713959,241.26,241.12,9.88713959]
[1732112545660,2.071,241.2,241.13,2.0715]
[1732112545861,3.14,241.19,241.12,9.88713959]
[1732112546063,2.071,241.2,241.14,2.0714]
[1732112546258,2.071,241.2,241.12,9.88713959]
[1732112546259,3.14,241.2,241.12,9.88713959]
[1732112547359,5.211,241.2,241.13,2.0715]
[1732112547562,5.211,241.2,241.12,9.88713959]
[1732112547857,5.211,241.2,241.04,2.33597193]
[1732112547858,9.88713959,241.17,241.04,2.33597193]
[1732112548062,3.14,241.2,241.04,2.33597193]
[1732112548063,9.88713959,241.11,241.04,2.33597193]
[1732112548255,2.0722,241.06,240.98,2.33597193]
[1732112548556,3.14,241.09,240.99,9.88713959]
[1732112548752,3.14,241.09,241.01,2.0726]
[1732112548955,3.14,241.09,240.97,9.88713959]
[1732112549364,2.0721,241.07,240.99,2.0727]
[1732112549554,3.14,241.09,240.93,4.8983]
[1732112550060,3.14,241.09,240.95,9.88713959]
[1732112550261,3.14,241.09,240.93,4.8983]
[1732112550561,3.14,241.09,240.94,9.88713959]
[1732112550762,2.0723,241.04,240.97,2.0729]
[1732112550962,3.14,241.09,240.91,15.85694352]
[1732112551354,2.0723,241.04,240.96,2.073]
[1732112551654,19.18284352,241.13,240.95,15.85694352]
[1732112551856,2.072,241.08,240.99,2.0727]
[1732112552060,3.14,241.12,240.95,15.85694352]
[1732112552264,3.3259,241.13,240.95,15.85694352]
[1732112552462,3.3259,241.13,241.02,2.0724]
[1732112552463,3.14,241.12,241.02,2.0724]
[1732112552666,3.14,241.12,240.99,15.85694352]
[1732112552865,3.14,241.12,241.03,15.85694352]
[1732112553063,1.5794,241.19,241.03,15.85694352]
[1732112553064,2.0713,241.16,241.03,15.85694352]
[1732112553367,3.14,241.15,241.07,15.85694352]
[1732112553561,3.16,241.18,241.07,15.85694352]
[1732112553757,15.85694352,241.25,241.07,15.85694352]
[1732112553962,3.16,241.24,241.07,15.85694352]
[1732112554263,1.6429,241.28,241.11,15.85694352]
[1732112554461,1.6429,241.28,241.12,3.1984]
[1732112554462,3.16,241.25,241.12,3.1984]
[1732112554667,3.16,241.25,241.15,15.85694352]
[1732112555165,2.0709,241.21,241.14,2.0715]
[1732112555361,3.16,241.25,241.12,19.05534352]
[1732112556462,3.16,241.28,241.16,15.85694352]
[1732112557059,5.2303,241.28,241.21,2.0708]
[1732112557259,3.16,241.28,241.21,2.0708]
[1732112557665,3.16,241.28,241.19,2.071]
[1732112557865,3.16,241.28,241.12,3.1984]
[1732112558166,3.16,241.28,241.13,2.0715]
[1732112558167,2.071,241.2,241.13,2.0715]
[1732112558367,3.16,241.21,241.12,3.1984]
[1732112559269,19.01694352,241.21,241.04,1.6133]
[1732112559465,19.01694352,241.21,241.05,1.5783]
[1732112559865,3.16,241.21,241.05,1.5783]
[1732112561371,2.071,241.19,241.14,2.0715]
[1732112561576,3.16,241.21,241.05,1.5783]
[1732112561968,3.16,241.23,241.08,15.85694352]
[1732112562177,3.16,241.26,241.09,3.16]
[1732112562365,2.0707,241.24,241.19,2.071]
[1732112562671,3.16,241.27,241.12,15.85694352]
[1732112562868,3.16,241.27,241.13,1.6508]
[1732112563667,3.16,241.27,241.2,2.0709]
[1732112564075,3.16,241.27,241.13,1.6508]
[1732112564271,3.16,241.27,241.16,15.85694352]
[1732112564566,3.16,241.27,241.17,3.1885]
[1732112564866,5.2304,241.27,241.22,2.0708]
[1732112565071,3.16,241.27,241.22,2.0708]
[1732112565473,3.16,241.27,241.23,2.0707]